Cogmind - Beta 15 @@@ ROGUE MODE // 2025.10.22 @ 02:00:50 Player: LameThyst Result: Destroyed by D-53 Grenadier with Mini Grenade Launcher Performance ------------- Evolutions (0) 0 Regions Visited (2) 400 Robots Destroyed (24) 120 Value Destroyed (267) 267 Prototype IDs (2) 40 Alien Tech Used (0) 0 Bonus (0) 0 TOTAL SCORE: 827 Bonus ------- None Cogmind --------- Core Integrity 0/250 Matter 201/300 Energy 99/100 System Corruption 0% Temperature Cool (0) Movement Core (200) Ox3 Location -10/Mines Parts ------- > --- POWER (1) -------- (None) > --- PROPULSION (2) --- (None) > --- UTILITY (2) ------ Medium Storage Unit > --- WEAPON (2) ------- (None) > --- INVENTORY (10) --- Ion Engine Aluminum Leg Aluminum Leg Seismic Detector Light Armor Plating Light Armor Plating EM Shotgun Assault Rifle Light Cannon Mining Laser Peak State ------------ > --- POWER ------------ Ion Engine > --- PROPULSION ------- Aluminum Leg Aluminum Leg > --- UTILITY ---------- Small Storage Unit Seismic Detector > --- WEAPON ----------- Assault Rifle Light Assault Rifle > --- INVENTORY -------- Light Ion Engine Compact Wheel Compact Wheel Improved Terrain Scanner Seismic Detector Small Laser Mining Laser Mining Laser [Rating: 8] Favorites ----------- Power Ion Engine Engine Ion Engine Propulsion Aluminum Leg Leg Aluminum Leg Utility Medium Storage Unit Device Seismic Detector Storage Medium Storage Unit Protection Light Armor Plating Weapon Assault Rifle Ballistic Gun Assault Rifle Launcher Grenade Launcher Special Weapon Mining Laser Build | -11 -10 -10 ------- Run | Yrd Mat Min Slots Evolved . | . . . Power . | . . . Propulsion . | . . . Utility . | . . . Weapon . | . . . Parts Attached 20 | 8 12 . Power 4 | 2 2 . Engine 4 | 2 2 . Core . | . . . Reactor . | . . . Propulsion 5 | 2 3 . Treads . | . . . Leg 5 | 2 3 . Wheel . | . . . Hover . | . . . Flight . | . . . Utility 5 | 2 3 . Device 2 | 1 1 . Storage 2 | 1 1 . Processor . | . . . Hackware . | . . . Protection 1 | . 1 . Artifact . | . . . Weapon 6 | 2 4 . Energy Gun . | . . . Energy Cannon . | . . . Ballistic Gun 4 | 2 2 . Ballistic Cannon . | . . . Launcher 1 | . 1 . Special Weapon 1 | . 1 . Impact Weapon . | . . . Slashing Weapon . | . . . Piercing Weapon . | . . . Special Melee Weapon . | . . . Unidentified Prototypes . | . . . Parts Lost 6 | . . 6 Power 1 | . . 1 Propulsion 2 | . . 2 Utility 1 | . . 1 Weapon 2 | . . 2 Highest Loss Streak 6 | . . 6 To Critical Strikes 1 | . . 1 Average Backups 8 | 4 9 10 Power . | . 1 1 Propulsion 2 | 1 2 2 Utility 2 | . 2 3 Weapon 2 | 1 2 4 Tool/Special . | . . . Unused Backups 7 | . 4 3 Power . | . . . Propulsion 2 | . 2 . Utility 2 | . 1 1 Weapon 3 | . 1 2 Tool/Special . | . . . Average Slot Usage (%) 98 | . 99 91 Engine 13 | . 14 13 Leg 27 | . 28 24 Device 8 | . 8 12 Storage 14 | . 14 14 Protection 5 | . 5 . Ballistic Gun 24 | . 24 24 Special Weapon 3 | . 3 . Peak Build Rating 8 | 8 8 8 Average Rating 7 | 5 7 7 On Entrance 5 | . 7 8 Naked Turns . | . . . Heaviest Build 21 | 14 21 21 Greatest Support 20 | 20 20 20 Greatest Overweight (x) 4 | . 1 4 Average Overweight (x) . | . . . Largest Inventory Capacity 10 | 8 10 10 Average Capacity 9 | 7 9 10 Most Carried 10 | 8 10 10 Average Carried 8 | 4 9 10 Final Capacity 10 | 8 10 10 Final Carried 10 | 7 10 10 Class Distribution -------------------- 93% | Mutant 6% | Scavenger-Mutant Dominant Class ---------------- Mutant | -10/Materials Mutant | -10/Mines Resources | -11 -10 -10 ----------- Run | Yrd Mat Min Matter Collected 820 | 360 380 80 Remotely . | . . . Salvage Created 607 | 163 369 75 Parts 54 | 15 31 8 Haulers Intercepted 2 | . 2 . Recyclers Shooed 2 | . 2 . Parts Field Recycled . | . . . Retrieved Matter . | . . . Parts Self-Destructed . | . . . Prevented . | . . . Kills | -11 -10 -10 ------- Run | Yrd Mat Min Combat Hostiles Destroyed 17 | . 9 8 Guns 9 | . 9 . AOE 8 | . . 8 Classes Destroyed 9 | 2 5 2 Worker 3 | . 1 2 Builder 1 | . . 1 Tunneler 4 | 4 . . Hauler 2 | . 2 . Recycler 1 | 1 . . Watcher 1 | . 1 . Swarmer 9 | . 6 3 Grunt 3 | . 3 . Assembled 5 | . . 5 Best Kill Streak 6 | 2 3 6 Combat Bots Only 5 | . 2 5 Max Kills in Single Turn 4 | 1 1 4 Gunslinging . | . . . Exploded 3 | . . 3 Melee . | . . . Uniques/NPCs Destroyed . | . . . Combat | -11 -10 -10 -------- Run | Yrd Mat Min Hostile Shots Fired 67 | . 40 27 Missed 9 | . 8 1 Hits 58 | . 32 26 Melee 2 | . . 2 Projectile 56 | . 32 24 AOE 9 | . . 9 Critical Strikes 1 | . . 1 Part Disruptions 1 | . . 1 Damage Taken 999 | . 335 664 Core 263 | . 56 207 Absorbed by Shields . | . . . Regen/Repaired (Parts) 145 | . 145 . Core Remaining (%) 100 | 100 . . Volleys Fired 90 | 20 61 9 Largest 2 | 2 2 2 Hottest 120 | 40 120 50 Shots Fired 160 | 40 103 17 Gun 135 | 40 82 13 Cannon . | . . . Launcher 4 | . . 4 Special 21 | . 21 . Kinetic 135 | 40 82 13 Thermal 21 | . 21 . Explosive 4 | . . 4 Electromagnetic . | . . . Robot Hit Streak 11 | 5 11 9 Robot Miss Streak 3 | 2 3 2 Penetration Max . | . . . Secondary Targets . | . . . Shots Hit Robots 80 | 22 50 8 Core Hits 48 | 9 23 16 Critical Kills . | . . . Critical Parts Destroyed . | . . . Critical Strikes . | . . . Melee Attacks . | . . . Impact . | . . . Slashing . | . . . Piercing . | . . . Sneak Attacks . | . . . Combat Hostiles . | . . . Follow-up Attacks . | . . . Damage Inflicted 1290 | 226 558 506 Guns 873 | 226 558 89 Cannons . | . . . Explosions 417 | . . 417 Melee . | . . . Ramming . | . . . Kinetic 873 | 226 558 89 Thermal . | . . . Explosive 417 | . . 417 Electromagnetic . | . . . Impact . | . . . Slashing . | . . . Piercing . | . . . Highest Corruption . | . . . Average Corruption . | . . . Corruption Purged . | . . . Corruption Blocked . | . . . Overload Shots . | . . . Overflow Damage . | . . . Projectiles . | . . . Explosions . | . . . Melee . | . . . Knockbacks . | . . . Impact . | . . . Kinetic . | . . . Secondary . | . . . Self-Inflicted Damage 58 | . . 58 Shots 3 | . . 3 Rammed . | . . . Targets Rammed . | . . . Kicked . | . . . Crushed . | . . . Highest Temperature 128 | . 128 43 Average Temperature 27 | . 27 26 Received Heat Transfer 191 | . 111 80 Siege Activations . | . . . Martial Activations . | . . . Shielding Activations . | . . . Robots Disrupted . | . . . Combat Hostiles . | . . . Robots Corrupted . | . . . Combat Hostiles . | . . . Parts Fried . | . . . Impact Corruptions . | . . . Robots Melted . | . . . Combat Hostiles . | . . . Parts Melted . | . . . Heat Transferred . | . . . Parts Sabotaged . | . . . Parts Stolen . | . . . Parts Stripped . | . . . Power Chain Reactions . | . . . Alert | -11 -10 -10 ------- Run | Yrd Mat Min Maximum Alert Level . | . . . Low Security (%) 100 | 100 100 100 Level 1 . | . . . Level 2 . | . . . Level 3 . | . . . Level 4 . | . . . Level 5 . | . . . High Security . | . . . Max Security . | . . . Peak Influence 122 | 10 122 85 Initial 21 | . . 21 Average 28 | . 32 37 Influence Increases 493 | 25 350 118 Destroy 0b10 Robot/C 240 | . 180 60 Destroy 0b10 Robot/NC 60 | 25 20 15 Destroy Leader 56 | . 46 10 Trap Triggered on 0b10 30 | . 30 . Successful Hack 27 | . 27 . Destroy Structure 50 | . 17 33 Lose Combat Pursuer 30 | . 30 . Influence Decreases 493 | 25 295 173 Entered New Map 34 | . . 34 Time Decay 368 | 25 262 81 Lost Part 58 | . . 58 Purge Threat 33 | . 33 . Squads Dispatched 2 | . 2 . Investigation 1 | . 1 . Extermination . | . . . Reinforcement 1 | . 1 . Assault . | . . . Garrison . | . . . Intercept . | . . . Searches Triggered . | . . . Construction Impeded . | . . . Haulers Reinforced . | . . . Active Scanning Responses . | . . . Cargo Convoy Interrupts . | . . . Stealth | -11 -10 -10 --------- Run | Yrd Mat Min Distress Signals . | . . . Communications Jammed . | . . . Distress Signals . | . . . Times Spotted 37 | . 13 24 Peak Tracking Total 15 | . 3 15 Tactical Retreats 2 | . 2 . Traps | -11 -10 -10 ------- Run | Yrd Mat Min Traps Triggered 1 | . 1 . Indirectly . | . . . Trap Hack Attempts . | . . . Triggered . | . . . Disarmed . | . . . Reprogrammed 6 | . 6 . Reused 3 | . 3 . Traps Extracted . | . . . Installed . | . . . Triggered 3 | . 3 . Machines | -11 -10 -10 ---------- Run | Yrd Mat Min Machines Disabled . | . . . Max in Single Turn . | . . . Machines Repaired . | . . . Machines Dismantled . | . . . Machines Sabotaged . | . . . Overloaded Fab Kills . | . . . Hacking | -11 -10 -10 --------- Run | Yrd Mat Min Machines Accessed 8 | . 8 . Terminals 6 | . 6 . Fabricators . | . . . Repair Stations 1 | . 1 . Recycling Units 1 | . 1 . Scanalyzers . | . . . Garrison Access . | . . . Total Hacks 34 | . 34 . Successful 23 | . 23 . Failed 11 | . 11 . Catastrophic 1 | . 1 . Database Lockouts . | . . . Manual 18 | . 18 . Terminals 22 | . 22 . Fabricators . | . . . Repair Stations 7 | . 7 . Recycling Units 5 | . 5 . Scanalyzers . | . . . Garrison Access . | . . . Terminal Hacks 9 | . 9 . Prototype ID Bank 1 | . 1 . Terminal Index 1 | . 1 . Unreport Threat 1 | . 1 . Locate Traps 2 | . 2 . Reprogram Traps 1 | . 1 . Zone Layout 3 | . 3 . Fabricator Hacks . | . . . Repair Station Hacks 6 | . 6 . Scan Component 3 | . 3 . Repair 3 | . 3 . Recycling Unit Hacks . | . . . Scanalyzer . | . . . Garrison Access Hacks . | . . . Unauthorized Hacks 8 | . 8 . Terminals 7 | . 7 . Botnet 2 | . 2 . Skim 5 | . 5 . Fabricators . | . . . Repair Stations . | . . . Recycling Units 1 | . 1 . Reject 1 | . 1 . Scanalyzers . | . . . Garrison Access . | . . . Data Cores Recovered . | . . . Used . | . . . Hacking Detections 8 | . 8 . Full Trace Events . | . . . Feedback Events . | . . . Feedback Blocked . | . . . Robot Schematics Acquired . | . . . Robots Built . | . . . Authchips . | . . . Time . | . . . Total Robot Build Rating . | . . . Part Schematics Acquired . | . . . Parts Built . | . . . Authchips . | . . . Time . | . . . Total Part Build Rating . | . . . Parts Repaired 3 | . 3 . Time 78 | . 78 . Parts Recycled . | . . . Recycled Matter . | . . . Retrieved Matter . | . . . Retrieved Components . | . . . Parts Scanalyzed . | . . . Part Schematics Acquired . | . . . Parts Damaged . | . . . Bothacking | -11 -10 -10 ------------ Run | Yrd Mat Min Used RIF Installer . | . . . Robots Hacked . | . . . Non-combat . | . . . Combat . | . . . Robot Hacks Applied . | . . . Relay Couplers Released . | . . . Fabnet Peak Effective % . | . . . Robots Rewired . | . . . Allies Hacked . | . . . Hacks Repelled . | . . . Allies | -11 -10 -10 -------- Run | Yrd Mat Min Total Allies . | . . . Largest Group . | . . . Highest-Rated Group . | . . . Highest-Rated Ally . | . . . Total Orders . | . . . Ally Attacks . | . . . Total Damage . | . . . Kills . | . . . Allies Corrupted . | . . . Allies Melted . | . . . Intel | -11 -10 -10 ------- Run | Yrd Mat Min Active Infowar (turns) 968 | 25 750 193 Seismic 968 | 25 750 193 Robot Analysis Total . | . . . Derelict Logs Recovered 1 | . . 1 Drone Launches . | . . . Drone Recoveries . | . . . Exploration | -11 -10 -10 ------------- Run | Yrd Mat Min Turns Passed 1761 | 243 1298 220 Spaces Moved 916 | 141 627 148 Core 9 | 2 . 7 Treads . | . . . Legs 907 | 139 627 141 Wheels . | . . . Hover . | . . . Flight . | . . . Fastest Speed 50 | 50 120 120 Average Speed 134 | 119 139 127 Slowest Speed 250 | 120 190 250 Overloaded Moves . | . . . Propulsion Burnouts . | . . . Robots Hopped . | . . . Potential Cave-ins . | . . . Cave-ins Triggered . | . . . Exploration Rate (%) 45 | 7 87 42 Regions Visited 2 Branch Regions 1 Pre-discovered Areas 2 | . 1 1 Known Exits Taken 1 | . 1 . Unknown Exits Taken 1 | 1 . . Scrap Searched 1 | . . 1 Spaces Dug 20 | . 20 . Terrain Destroyed 58 | . 21 37 Melee . | . . . Projectile 21 | . 21 . AOE 37 | . . 37 Terrain Rammed . | . . . Walls Destroyed . | . . . Machines Disabled . | . . . Actions | -11 -10 -10 --------- Run | Yrd Mat Min Total 1241 | 176 903 162 Wait 171 | . 169 2 Move 914 | 140 626 148 Hop . | . . . Pick Up 13 | 7 6 . Fast Attach 11 | 7 4 . Attach 1 | . 1 . Detach . | . . . Swap 29 | 1 25 3 Drop 12 | 1 11 . Fire 90 | 20 61 9 Melee . | . . . Ram . | . . . Kick . | . . . Crush . | . . . Escape Stasis . | . . . Rewire . | . . . Trap . | . . . Miscellaneous . | . . . Route ------- -11/Scrapyard -10/Materials (discovered 6 exits: *Mat x3 / *Min x2 / Sub) -10/Mines (discovered 2 exits: *Mat / *Sub) History --------- Turn | Location | Event 5 | -11/Scrapyard | Discovered new exit (range 15) 244 | -11/Scrapyard | Entered Materials 310 | -10/Materials | Build established: Mutant 416 | -10/Materials | Discovered new exit (range 16) 693 | -10/Materials | Discovered new exit (range 14) 824 | -10/Materials | Repaired Aluminum Leg 844 | -10/Materials | Derelicts attacked the area 851 | -10/Materials | Repaired Assault Rifle 898 | -10/Materials | Repaired Lgt. Armor Plating 1033 | -10/Materials | Discovered new exit (range 13) 1223 | -10/Materials | Discovered new exit (range 16) 1264 | -10/Materials | Learned location of Subcaves (-10) 1322 | -10/Materials | Loaded intel: 2 recycling unit locations 1368 | -10/Materials | Learned 4 Subcaves zone layouts 1427 | -10/Materials | Identified exit to Materials 1440 | -10/Materials | Identified exit to Subcaves 1440 | -10/Materials | Identified exit to Mines 1464 | -10/Materials | Learned Storage trap positions 1542 | -10/Materials | Entered Mines 1562 | -10/Mines | Learned Materials security intel 1669 | -10/Mines | Discovered exit to Subcaves (range 9) 1709 | -10/Mines | Assembled infested the area 1724 | -10/Mines | Learned location of Storage (-9) 1742 | -10/Mines | Core integrity fell below 50% 1751 | -10/Mines | Core integrity fell below 20% 1762 | -10/Mines | Destroyed by D-53 Grenadier with Mini Grenade Launcher Last Messages --------------- 01743_ as-18291 destroyed. 01743_ as-93953 destroyed. 01743_ as-65474 destroyed. 01744_ The unstable cave ceiling collapses. 01745_ as-83417 destroyed. 01746_ The unstable cave ceiling collapses. 01746_ as-33509 destroyed. 01746_ as-31022 destroyed. 01746_ as-48594 destroyed. 01746_ as-13373 destroyed. 01746_ as-69602 destroyed. 01746_ as-11506 destroyed. 01747_ as-87773 destroyed. 01747_ as-45822 destroyed. 01747_ as-80029 destroyed. 01748_ The unstable cave ceiling collapses. 01749_ Assault Rifle destroyed. 01749_ Aluminum Leg destroyed. 01750_ Ion Engine destroyed. 01751_ The unstable cave ceiling collapses. Map ----- +----------------------------------------------------+ | #?????????# #???????????????????????????????? | | ##???????## #???????????????????????????????? | | ######### #???????????????????????????????? | | ##??????????????????????????????? | | ##?????????????????????????????? | | ##????????????????????????????? | | ###????????? ????????????????? | | " ##?????? " ???????????????? | | ###%" ####### ???????????????? | | # ## ##?## # # ??????????????? | | ###### #???# %[ % #??????????????? | | ????## #???# #??????????????? | | ???## ##???# # #??????????????? | | #### ##????## ## % #??????????????? | | # ##??????## # ???????????????? | | ##???????# #?????????????????? | | #???????# #??????????????????? | | # ##??????# d #???????????????????? | | ### #??????### # d # ##????????????????????? | | ??## #????????## ###?????????????????????? | | #?## #????????# ##?????????????????????? | | # #????????# # #?????????????????????? | | #????????# #############??????????? | | ##????????# # #??????????? | | #### #?????????## #?????????? | | ##???# #??????????## @ #????????? | | ?????# #???????????# ###### ????????????? | | ?????# ##########??#### ##??????????????????? | | ?????# # ##???# ##???????????????????? | | ?????# # [ [ #??# #####????????????????????? | | " #### # < *=##??# ##????????????????????????? | | " * #??###??????????????????????????? | | ###### #???????????????????????????????? | | ???????#### #???????????????????????????????? | | ??????????########???????????????????????????????? | | ?????????????????????????????????????????????????? | | ?????????????????????????????????????????????????? | | ?????????????????????????????????????????????????? | | ?????????????????????????????????????????????????? | | ?????????????????????????????????????????????????? | | ?????????????????????????????????????????????????? | | ?????????????????????????????????????????????????? | | ?????????????????????????????????????????????????? | | ?????????????????????????????????????????????????? | | | | | | | | | | | | | +----------------------------------------------------+ Best States ------------- Heat Dissipation 25 Energy Generation 10 Energy Capacity 250 Matter Stores 300 Matter Capacity 300 Sight Range 16 Terrain Scan Density 10 Armor Coverage 150 Evasion (%) 55 Item Schematics ----------------- None Robot Schematics ------------------ None Fabricated ------------ Nothing Repaired ---------- Aluminum Leg | 38% | -10/Materials Assault Rifle | 51% | -10/Materials Lgt. Armor Plating | 54% | -10/Materials Alien Tech Used ----------------- None Achievements -------------- None Challenges ------------ None Game ------ Seed GatlingDefenseExoskeleton Manual? 0 Play Time 00:21:11 Cumulative 134.9 hours Start 2025.10.20 @ 21:51:27 End 2025.10.22 @ 02:00:50 Sessions 2 Manual Loads 0 Difficulty Rogue Special Mode None Game No. 151 Rogue 151 Adventurer 0 Explorer 0 Win Type - Total 0 Types 0/0/0/0/0/0/0/0/0/0 Lore% 62 Gallery% 46 Achievement% 37 Wizard Run 0 Options --------- Layout 1 ASCII 0 Keyboard 0 Movement Mouse Keybinds 0 Fullscreen 2 Font 48/Smallcaps Map View 50x35 Zoom Use 0% Tactical HUD 1 Map Filters NONE Filters NONE Steam 0 RUN: 4c8bc7ea-dbec-42f5-9dbe-37f38c93e57e